bitfinex/quotes_ETHUSD_20220227
["timestamp","ask_amount","ask_price","bid_price","bid_amount"]
[1645991713458,8.5436,2629.7,2628.3,0.3802]
[1645991713659,8.5436,2629.7,2628.2,0.439]
[1645991713855,6.4918,2630.4,2628.2,0.8192]
[1645991714057,2.7812,2630.2,2628.2,0.439]
[1645991714258,1.0405736,2630.0,2629.1,1.07535264]
[1645991714456,1.07132749,2628.6,2628.2,0.439]
[1645991714655,1.07132749,2628.6,2628.3,0.19104823]
[1645991714854,3.5,2629.9,2628.5,0.95154]
[1645991715054,2.7812,2630.2,2628.4,0.439]
[1645991715355,3.5,2630.1,2628.4,0.439]
[1645991715804,1.34962314,2629.1,2628.4,0.439]
[1645991716002,1.34962314,2629.1,2628.1,0.25]
[1645991716211,0.01217463,2629.8,2628.1,0.25]
[1645991716403,11.7516431,2630.1,2628.1,0.25]
[1645991716939,0.95166,2630.0,2628.2,0.95164]
[1645991717151,1.08967294,2629.5,2628.5,1.30219171]
[1645991717305,3.5,2629.9,2628.5,1.30219171]
[1645991717539,10.8,2629.9,2628.1,2.15312]
[1645991717952,10.8,2629.9,2628.1,2.45312]
[1645991718162,10.8,2629.9,2628.1,2.15312]
[1645991718381,1.15088141,2629.1,2628.5,0.95154]
[1645991718711,10.8,2629.9,2628.5,0.95154]
[1645991719785,11.8,2629.9,2628.1,2.15312]
[1645991719995,11.8,2629.9,2628.1,0.25]
[1645991719996,5.0,2629.5,2628.1,0.25]
[1645991720271,5.0,2628.9,2627.0,3.80647]
[1645991720495,6.4521,2628.8,2626.8,0.0115]
[1645991720675,6.4521,2628.8,2626.8,0.2615]
[1645991720859,8.7858,2628.8,2626.8,0.2615]
[1645991721255,1.17157855,2627.9,2626.8,1.56964009]
[1645991721757,1.17157855,2627.9,2626.8,0.2615]
[1645991721955,3.5,2627.8,2626.8,0.2615]
[1645991722157,1.17157855,2627.9,2626.8,0.2615]
[1645991722361,3.5,2627.8,2626.8,0.2615]
[1645991722561,1.17157855,2627.9,2626.8,0.2615]
[1645991740356,0.1522,2627.8,2626.8,0.2615]
[1645991740563,0.3802,2627.9,2626.3,3.80754]
[1645991740748,0.3802,2627.7,2626.4,0.82296756]
[1645991741102,3.5,2628.1,2626.4,0.82296756]
[1645991741281,0.5324,2628.0,2626.4,0.82296756]
[1645991741475,0.5324,2628.0,2626.6,0.95227]
[1645991741675,3.8802,2627.9,2626.7,0.82296756]
[1645991742077,0.1522,2628.0,2626.8,0.3802]
[1645991742290,2.9095556,2628.1,2627.0,0.3802]
[1645991742891,1.28675079,2627.8,2627.0,0.6802]
[1645991743291,2.9095556,2628.1,2627.0,0.6802]
[1645991743488,2.9095556,2628.1,2627.1,0.82300921]
[1645991743689,2.9095556,2628.1,2627.0,0.6802]
[1645991744094,2.8595556,2628.1,2627.0,0.6802]
[1645991744296,2.8595556,2628.1,2627.2,1.68109714]
[1645991744491,2.8595556,2628.1,2627.3,0.3802]
[1645991745318,2.8595556,2628.1,2627.2,12.73204]
[1645991745518,2.8595556,2628.1,2627.7,1.2685888]
[1645991745723,2.8595556,2628.1,2627.7,13.4287888]
[1645991745916,2.8595556,2628.1,2627.6,0.27786972]
[1645991746718,2.8595556,2628.1,2627.7,0.3802]
[1645991747115,2.8595556,2628.1,2627.3,2.6346625]
[1645991747316,2.8595556,2628.1,2627.4,11.48]
[1645991747517,2.8595556,2628.1,2627.5,1.23618255]
[1645991747718,2.8595556,2628.1,2627.7,0.3802]
[1645991748023,2.8595556,2628.1,2627.7,11.8602]
[1645991748218,2.8595556,2628.1,2627.7,2.04626332]
[1645991748463,2.8595556,2628.1,2627.7,13.52626332]
[1645991748869,2.8595556,2628.1,2627.7,13.96526332]
[1645991749069,2.8595556,2628.1,2627.9,11.8602]
[1645991749273,2.8595556,2628.1,2627.9,12.5992]
[1645991749972,7.3,2628.8,2628.1,11.8602]
[1645991750176,7.3,2629.9,2628.3,11.8602]
[1645991750371,7.3,2629.9,2628.3,0.3802]
[1645991750574,7.3,2629.9,2628.4,0.439]
[1645991750575,4.32222199,2629.8,2628.4,0.439]
[1645991750772,4.32222199,2629.8,2628.5,0.3802]
[1645991750773,0.67012199,2629.7,2628.5,0.3802]
[1645991751076,1.08241541,2629.3,2628.4,0.6802]
[1645991751383,3.6521,2629.8,2628.2,0.6]
[1645991751579,0.1521,2629.8,2628.4,0.95151]
[1645991751881,0.1521,2629.8,2628.4,1.25151]
[1645991752081,0.1521,2629.8,2628.5,0.3802]
[1645991752300,1.08486466,2629.6,2628.5,0.6802]
[1645991752498,1.08486466,2629.6,2628.5,0.3]
[1645991752905,1.08486466,2629.6,2628.4,0.95151]
[1645991752906,1.23696466,2629.6,2628.4,0.95151]
[1645991753104,1.08486466,2629.6,2628.4,0.95151]
[1645991753300,1.08486466,2629.6,2628.6,0.3802]
[1645991753502,7.3,2629.9,2628.6,0.3802]
[1645991754219,7.3,2629.9,2628.6,0.3]
[1645991754409,0.1521,2629.8,2628.6,0.3]
[1645991754609,7.6802,2629.9,2628.4,1.26301]
[1645991754813,7.3,2629.9,2628.4,1.26301]
[1645991755012,7.3,2629.9,2628.4,1.70201]
[1645991755213,8.42117827,2629.9,2628.5,0.3802]
[1645991755414,8.42117827,2629.9,2628.5,1.24098625]
[1645991755617,8.42117827,2629.9,2628.6,0.3802]
[1645991755814,0.1521,2630.1,2628.6,0.6802]
[1645991756050,0.1521,2630.1,2628.8,1.39820157]
[1645991756246,0.1521,2631.0,2628.9,6.29928283]
[1645991756448,0.66416467,2630.9,2629.0,1.11021336]
[1645991756646,0.152,2630.8,2629.6,11.48]
[1645991756847,0.152,2630.8,2629.7,0.439]
[1645991757047,0.152,2630.8,2630.0,0.3802]
[1645991757249,1.15174102,2631.7,2630.3,11.8602]
[1645991757250,0.152,2631.0,2630.3,11.8602]
[1645991757449,0.152,2631.5,2630.3,12.1602]
[1645991757650,0.00338098,2631.4,2630.5,0.3802]
[1645991757848,0.15538098,2631.6,2630.7,11.8602]
[1645991758047,0.00338098,2631.4,2630.7,0.3802]
[1645991758253,1.35572819,2631.6,2630.7,0.6802]
[1645991758649,0.152,2631.5,2630.7,0.6802]
[1645991758854,7.43534621,2632.6,2630.7,0.6802]
[1645991758855,0.152,2631.9,2630.7,0.6802]
[1645991759249,0.00338098,2631.8,2630.7,12.1602]
[1645991759449,0.64062643,2632.0,2630.7,0.6802]
[1645991759697,1.32952594,2631.6,2630.7,0.6802]
[1645991759903,0.152,2631.9,2630.7,0.6802]
[1645991760102,0.64062514,2631.8,2630.8,0.3802]
[1645991760301,0.64062514,2631.8,2630.9,11.8602]
[1645991760302,0.00338098,2631.8,2630.9,11.8602]
[1645991760502,0.64384772,2632.2,2630.9,11.8602]
[1645991760704,0.152,2632.1,2630.9,12.1602]
[1645991760912,0.64384772,2632.0,2630.9,12.1602]
[1645991761210,0.00338098,2632.0,2631.1,11.8602]
[1645991761404,0.64388938,2632.4,2631.1,12.5992]
[1645991762005,0.00338098,2632.4,2631.1,12.5992]
[1645991762405,0.00338098,2632.4,2631.1,14.76381244]
[1645991762605,0.00338098,2632.4,2631.1,13.5992]
[1645991763444,0.01004874,2631.8,2631.3,11.8602]
[1645991763636,0.01004874,2631.8,2631.3,12.2992]
[1645991763839,0.01004874,2631.8,2631.3,0.439]
[1645991764040,0.41434947,2631.2,2631.0,11.48]
[1645991764242,0.01004874,2631.8,2631.0,0.65808441]
[1645991764441,0.01004874,2631.8,2631.0,0.439]
[1645991764842,0.01004874,2631.8,2631.1,11.8602]
[1645991765046,0.01004874,2631.8,2631.1,0.3802]
[1645991765242,0.01004874,2631.8,2631.0,0.439]
[1645991765843,0.01004874,2631.8,2631.1,11.48]
[1645991766245,0.01004874,2631.8,2631.1,12.48]
[1645991766444,0.152,2632.5,2631.3,11.48]
[1645991766445,0.11204874,2632.5,2631.3,11.48]
[1645991766644,0.003364,2632.4,2631.3,11.919]
[1645991766846,0.003364,2632.4,2632.0,0.3802]
[1645991767044,0.155264,2632.9,2632.1,11.919]
[1645991767295,1.37921,2633.0,2632.1,11.919]
[1645991767296,1.0,2633.0,2632.1,11.919]
[1645991767493,1.0,2633.0,2632.3,11.48]
[1645991767693,1.0,2633.0,2632.1,0.439]
[1645991767993,1.0,2633.0,2631.7,0.25]
[1645991767994,0.1519,2632.9,2631.8,0.3]
[1645991768199,0.155264,2632.9,2631.7,0.25]
[1645991768499,1.33420374,2632.7,2631.7,0.55]
[1645991768703,0.1519,2632.6,2631.7,0.55]
[1645991768899,0.155264,2632.6,2631.7,0.25]
[1645991769503,1.29664788,2631.8,2631.7,0.25]
[1645991769699,1.29664788,2631.8,2631.0,0.151882]
[1645991769700,0.3802,2631.7,2631.0,0.151882]
[1645991769903,0.3302,2631.7,2631.0,0.151882]
[1645991770399,0.4822,2631.7,2631.0,0.151882]
[1645991770801,0.3302,2631.6,2631.0,0.151882]
[1645991771048,0.152,2631.5,2631.0,0.151882]
[1645991771249,0.152,2632.0,2631.0,0.151882]
[1645991771549,0.3802,2631.8,2631.0,0.151882]
[1645991771752,0.3802,2631.6,2629.6,0.2695]
[1645991771954,0.3802,2631.4,2629.6,0.5195]
[1645991772349,0.152,2631.3,2629.6,0.5195]
[1645991772548,0.3802,2631.2,2629.6,0.5195]
[1645991772748,0.152,2631.1,2629.6,0.5195]
[1645991773248,0.3802,2631.0,2629.6,0.5195]
[1645991773547,0.152,2630.9,2629.6,1.47057]
[1645991773756,5.01267671,2630.9,2629.6,0.5195]
[1645991773951,5.0,2630.7,2629.6,0.5195]
[1645991774151,3.5,2630.6,2629.6,0.5195]
[1645991774353,0.152,2630.5,2629.6,0.5195]
[1645991774549,0.5322,2630.5,2629.6,0.5195]
[1645991774802,4.0322,2630.5,2629.6,0.5195]
[1645991774999,4.15889997,2630.5,2629.6,0.5195]
[1645991775203,0.152,2630.5,2629.6,0.8195]
[1645991775402,0.00545844,2631.6,2630.2,11.48]
[1645991775604,0.00545844,2631.6,2630.4,11.48]
[1645991775802,0.00545844,2631.6,2630.6,0.3802]
[1645991776001,0.00545844,2631.6,2630.6,0.8192]
[1645991776304,0.00545844,2631.6,2630.9,1.19255852]
[1645991776305,1.39521079,2631.5,2630.9,1.19255852]
[1645991776901,0.00545844,2631.6,2630.9,1.19255852]
[1645991778002,0.00545844,2631.6,2630.8,1.90117]
[1645991778449,0.1608347,2632.0,2630.8,1.90117]
[1645991778852,0.1608347,2632.0,2630.6,1.90117]
[1645991779349,0.3802,2631.9,2630.6,1.90117]
[1645991779549,0.155364,2631.8,2630.6,1.90117]
[1645991779748,0.055364,2631.8,2630.6,1.90117]
[1645991779950,0.152,2631.8,2630.6,1.90117]
[1645991780149,0.3802,2631.7,2630.6,1.90117]
[1645991780351,0.152,2631.6,2630.6,1.90117]
[1645991780549,1.28242273,2631.3,2630.6,1.90117]
[1645991781150,0.152,2631.6,2630.6,1.90117]
[1645991782194,1.51791604,2631.1,2630.3,0.25]
[1645991782396,0.3802,2631.1,2630.3,0.25]
[1645991783199,0.3802,2631.0,2630.3,0.25]
[1645991783398,1.27363614,2630.9,2630.3,1.03400631]
[1645991783598,5.6089,2631.5,2630.3,1.03400631]
[1645991783803,7.3,2631.4,2629.7,0.25]
[1645991784501,0.3802,2631.3,2629.7,1.20108]
[1645991784799,1.09425596,2630.6,2630.0,1.10511404]
[1645991785000,0.3802,2631.3,2630.0,1.10511404]
[1645991785401,0.3802,2631.3,2629.7,0.25]
[1645991785604,0.3802,2631.1,2629.7,0.25]
[1645991787250,0.3802,2631.2,2629.5,0.151956]
[1645991787451,0.3802,2631.0,2629.5,0.151956]
[1645991787652,8.4026406,2631.3,2630.0,11.48]
[1645991787653,0.3802,2631.2,2630.0,11.48]
[1645991787856,8.5409,2631.4,2629.8,0.3802]
[1645991788053,8.5409,2631.4,2629.6,0.439]
[1645991788054,3.5,2631.3,2629.6,0.439]
[1645991788254,3.5,2631.3,2630.3,1.44026794]
[1645991788255,0.00548079,2630.5,2630.3,1.44026794]
[1645991788755,0.00548079,2630.5,2629.6,11.919]
[1645991788958,0.00548079,2630.5,2629.8,0.3802]
[1645991789998,0.00548079,2630.5,2629.7,2.28205]
[1645991790202,0.00548079,2630.5,2629.7,2.58205]
[1645991790398,0.00548079,2630.5,2629.7,2.20185]
[1645991790998,0.00548079,2630.5,2630.1,1.15211218]
[1645991791199,0.00548079,2630.5,2629.7,2.20185]
[1645991791400,0.00548079,2630.5,2629.7,0.3]
[1645991791805,0.00548079,2630.5,2629.5,0.151956]
[1645991792001,0.38568079,2630.5,2629.5,0.151956]
[1645991792204,0.38568079,2630.5,2629.4,0.25]
[1645991792205,5.39300758,2630.3,2629.4,0.25]
[1645991792402,3.8802,2630.2,2629.4,0.25]
[1645991792603,0.55859953,2630.1,2629.4,0.25]
[1645991792801,12.36781953,2630.1,2629.4,0.25]
[1645991793002,0.3802,2629.7,2627.8,2.97546922]
[1645991793204,11.8602,2629.3,2627.8,2.97546922]
[1645991793468,11.8602,2629.3,2627.6,0.25]
[1645991793469,0.3802,2628.3,2627.6,0.25]
[1645991794052,0.3458,2628.5,2627.6,0.25]
[1645991794251,0.3802,2629.0,2627.6,0.25]
[1645991794456,0.3802,2629.0,2627.6,0.15]
[1645991794856,1.15667934,2628.8,2628.2,1.21838652]
[1645991795057,0.3802,2629.0,2628.2,1.21838652]
[1645991795456,0.3802,2629.5,2628.2,1.21838652]
[1645991795857,4.83204,2629.5,2628.2,1.21838652]
[1645991796157,1.36888744,2628.9,2628.2,1.21838652]
[1645991796356,1.36888744,2628.9,2627.6,6.48207]
[1645991796959,0.1521,2628.8,2627.6,6.48207]
[1645991797392,0.1521,2629.4,2628.1,5.0]
[1645991797597,4.05659997,2629.6,2628.1,11.8602]
[1645991797793,4.05659997,2629.6,2628.8,5.0]
[1645991797992,4.05659997,2629.6,2628.8,5.3802]
[1645991797993,0.12669997,2629.6,2628.8,5.3802]
[1645991798394,0.12669997,2629.6,2629.2,1.20233211]
[1645991798596,0.12669997,2629.6,2628.8,0.3802]
[1645991798796,0.12669997,2629.6,2628.2,1.3550349]
[1645991799098,0.12669997,2629.6,2628.2,0.25]
[1645991799295,0.1521,2629.5,2628.2,0.25]
[1645991799501,0.5323,2629.5,2628.2,0.25]
[1645991799696,0.5323,2629.5,2627.9,5.0]
[1645991799697,1.05920255,2629.2,2627.9,16.48]
[1645991799895,0.1521,2629.1,2628.1,0.95166]
[1645991800095,0.1521,2629.1,2628.1,1.33186]
[1645991800296,0.1521,2629.5,2628.1,1.33186]
[1645991800701,0.1521,2629.5,2628.7,5.0]
[1645991800948,0.12669997,2629.6,2628.7,5.0]
[1645991801343,1.30211807,2629.7,2629.1,1.33579563]
[1645991801644,0.11750797,2629.9,2629.1,1.33579563]
[1645991801847,0.1521,2630.1,2629.1,1.71599563]
[1645991802049,0.1521,2630.1,2628.7,5.0]
[1645991802250,0.1521,2630.4,2628.6,0.25]
[1645991802651,0.3802,2629.8,2628.6,0.25]
[1645991802850,0.95173,2629.9,2628.6,0.25]
[1645991802851,0.3802,2629.6,2628.6,0.25]
[1645991803249,0.1521,2629.5,2628.6,0.25]
[1645991803549,0.00532931,2629.0,2628.4,1.20654269]
[1645991804351,0.00532931,2629.0,2627.9,0.6302]
[1645991804555,0.00532931,2629.0,2627.9,0.25]
[1645991804809,0.00532931,2629.0,2626.7,3.8069]
[1645991804810,3.88552931,2629.0,2626.7,3.8069]
[1645991805012,5.0,2628.5,2627.3,0.25]
[1645991805202,0.3802,2628.6,2625.8,2.22231537]
[1645991805203,0.0127057,2627.7,2626.8,0.25]
[1645991805503,0.0127057,2627.7,2625.8,1.51077514]
[1645991805504,0.0127057,2627.7,2625.8,1.76077514]
[1645991805702,0.3802,2627.2,2625.8,1.76077514]
[1645991805902,5.9526604,2627.3,2625.8,1.76077514]
[1645991805903,0.3802,2627.0,2625.8,1.76077514]
[1645991806101,0.3802,2627.0,2625.8,0.25]
[1645991806102,0.3802,2626.8,2625.8,0.25]
[1645991806301,0.3802,2626.6,2625.8,0.25]
[1645991806502,0.3802,2626.4,2625.8,0.25]
[1645991806701,0.3802,2626.4,2625.1,1.2953602]
[1645991806902,0.1522,2626.6,2625.2,0.25]
[1645991807108,1.247e-05,2625.7,2625.2,0.25]
[1645991807303,1.247e-05,2625.7,2625.4,0.3802]
[1645991807703,1.247e-05,2625.7,2625.4,0.6802]
[1645991807902,1.247e-05,2625.7,2625.3,1.0]
[1645991807903,1.247e-05,2625.7,2625.3,1.90502]
[1645991808204,1.247e-05,2625.7,2624.9,0.13819997]
[1645991809047,1.247e-05,2625.7,2624.6,0.25]
[1645991809253,1.247e-05,2625.7,2624.7,0.3802]
[1645991809548,1.247e-05,2625.7,2624.6,0.25]
[1645991811550,0.15231247,2625.7,2624.6,0.25]
[1645991812395,1.0623678,2625.0,2624.6,0.25]
[1645991812591,0.10231247,2625.7,2624.6,0.25]
[1645991812794,0.3802,2625.5,2624.6,0.25]
[1645991812996,0.3802,2625.5,2623.8,0.3]
[1645991813396,0.3802,2625.5,2623.7,2.45625]
[1645991813397,0.5326,2625.5,2623.9,0.99745703]
[1645991813598,0.1524,2625.5,2623.9,12.47745703]
[1645991813796,0.1524,2625.5,2624.0,0.04376861]
[1645991814599,1.42029211,2625.0,2624.4,1.30573741]
[1645991814796,1.42029211,2625.0,2624.0,0.04376861]
[1645991815000,1.42029211,2625.0,2624.5,0.04092649]
[1645991815597,1.42029211,2625.0,2624.0,0.04376861]
[1645991815798,1.42029211,2625.0,2624.1,1.17127622]
[1645991816038,1.42029211,2625.0,2624.1,1.12807604]
[1645991816238,1.42029211,2625.0,2624.2,0.04263176]
[1645991816641,0.1524,2625.5,2624.3,11.8602]
[1645991816842,0.00514505,2625.6,2624.3,11.8602]
[1645991817042,0.00514505,2625.6,2624.4,0.04149491]
[1645991817843,0.00514505,2625.6,2624.5,1.05799544]
[1645991818145,0.00514505,2625.6,2624.4,0.04149491]
[1645991818343,0.00514505,2625.6,2624.6,0.04035806]
[1645991818546,0.00380558,2624.9,2623.7,0.25]
[1645991818750,0.38400558,2624.9,2622.6,3.8248301]
[1645991819048,0.38400558,2624.9,2622.1,1.51291845]
[1645991819049,0.3802,2624.7,2623.1,0.25]
[1645991819250,0.1524,2624.6,2622.1,1.51291845]
[1645991819447,5.0,2624.4,2622.3,0.25]
[1645991819709,3.6524,2624.3,2622.3,0.25]
[1645991820310,1.15533387,2623.6,2622.3,0.25]
[1645991820907,1.15533387,2623.6,2621.9,0.01240987]
[1645991820908,3.5,2623.8,2621.9,0.01240987]
[1645991821113,0.1524,2624.3,2622.2,1.90731]
[1645991821310,3.6524,2624.7,2622.5,0.01220666]
[1645991821512,3.6524,2624.7,2622.6,0.689]
[1645991822112,3.6524,2624.7,2623.4,1.29470265]
[1645991822113,1.04009895,2624.1,2623.4,1.29470265]
[1645991822512,8.6655,2624.8,2623.4,1.29470265]
[1645991822513,12.3179,2624.8,2623.4,1.29470265]
[1645991822716,4.6524,2624.8,2623.4,1.29470265]
[1645991823114,5.36182,2624.8,2623.4,1.29470265]
[1645991823553,1.2220959,2624.2,2623.4,1.29470265]
[1645991823755,5.235e-05,2624.2,2623.4,1.30716356]
[1645991823958,5.235e-05,2624.2,2623.7,0.95328]
[1645991824155,0.1524,2625.5,2624.1,0.01225509]
[1645991824457,8.47536547,2626.1,2624.1,0.01225509]
[1645991824458,20.10556544,2626.1,2624.1,0.01225509]
[1645991824855,20.10556544,2626.1,2624.1,1.90607]
[1645991825056,1.11079657,2625.3,2624.7,1.39382798]
[1645991825255,3.5,2625.9,2624.7,1.39382798]
[1645991825459,11.61876544,2626.1,2624.7,1.39382798]
[1645991825755,0.67346544,2626.1,2624.7,1.39382798]
[1645991826153,0.67346544,2626.1,2624.5,0.25]
[1645991826154,1.13711343,2625.7,2624.5,0.25]
[1645991826759,3.87921,2625.6,2624.5,0.25]
[1645991826959,3.87921,2625.6,2622.5,0.439]
[1645991826960,5.0,2624.6,2622.5,0.439]
[1645991827243,11.48,2625.5,2621.6,0.0171668]
[1645991827244,1.33776638,2622.8,2621.6,0.0171668]
[1645991827432,5.0,2623.4,2623.0,0.05362828]
[1645991827634,5.0,2623.4,2621.6,0.0171668]
[1645991827835,5.0,2623.0,2621.6,0.0171668]
[1645991828036,9.53111,2622.9,2621.6,0.0171668]
[1645991828232,5.0,2622.8,2621.6,0.0171668]
[1645991828430,1.08343405,2622.2,2621.6,0.0171668]
[1645991828632,1.08343405,2622.2,2621.5,0.2]
[1645991828834,2.03802405,2622.2,2621.5,0.2]
[1645991829038,1.909289,2622.4,2621.5,0.2]
[1645991829039,5.7968,2622.4,2621.5,0.2]
[1645991829232,0.3802,2622.3,2621.5,0.2]
[1645991829533,3.8802,2622.3,2621.5,0.2]
[1645991829734,0.3802,2621.8,2621.5,0.14209083]
[1645991829932,1.39444496,2622.1,2620.8,0.26565]
[1645991830131,2.86413,2622.5,2620.8,0.26565]
[1645991830334,5.78271,2622.6,2621.1,0.01248258]
[1645991830335,5.4035,2622.6,2621.1,0.01248258]
[1645991830538,3.5,2622.6,2621.1,0.01296061]
[1645991830735,3.5,2622.6,2620.8,0.26565]
[1645991830736,14.98,2622.6,2620.8,0.26565]
[1645991830974,16.7802,2623.1,2620.8,0.26565]
[1645991830975,1.2836138,2622.8,2620.8,0.26565]
[1645991831175,0.9543938,2622.8,2620.8,0.26565]
[1645991831374,1.08600081,2621.8,2620.8,0.26565]
[1645991831780,0.01260097,2622.2,2620.8,0.26565]
[1645991831974,1.0,2622.4,2620.8,0.26565]
[1645991832174,5.0,2623.0,2620.8,0.26565]
[1645991832175,5.6832,2623.1,2622.0,10.0]
[1645991832374,5.439,2624.3,2622.1,3.5]
[1645991832375,0.32922,2624.0,2622.1,3.5]
[1645991832675,0.37921,2624.2,2622.0,10.0]
[1645991832676,1.097849,2623.8,2623.1,1.03899096]
[1645991832874,0.1524,2623.7,2622.1,3.5]
[1645991833077,0.1524,2623.7,2622.0,10.0]
[1645991833277,0.70843,2623.6,2622.0,10.0]
[1645991833476,0.5327,2623.5,2622.0,10.0]
[1645991833677,5.3802,2623.4,2622.0,10.0]
[1645991833876,0.01226675,2623.1,2622.0,10.0]
[1645991834076,0.37921,2623.0,2622.0,10.0]
[1645991834275,0.1525,2623.3,2622.0,10.0]
[1645991834476,0.70843,2623.4,2622.0,10.0]
[1645991834477,0.1525,2623.4,2622.0,10.0]
[1645991834904,3.86297,2623.7,2622.0,9.95]
[1645991834905,2.86297,2623.7,2622.0,9.95]
[1645991835105,1.14266344,2623.7,2622.0,9.95]
[1645991835303,0.3802,2623.6,2622.0,9.95]
[1645991835709,0.37921,2623.5,2622.0,9.95]
[1645991836105,1.18547892,2623.3,2622.0,9.95]
[1645991836507,0.75422,2623.3,2622.0,9.95]
[1645991836706,0.90672,2623.3,2622.0,9.95]
[1645991836909,0.75422,2623.3,2622.0,9.95]
[1645991837108,1.9081917,2623.8,2622.1,3.5]
[1645991837109,0.37921,2623.7,2622.1,3.5]
[1645991837306,2.8612,2624.2,2622.0,9.95]
[1645991837307,0.3802,2624.0,2622.0,9.95]
[1645991837507,1.33328153,2623.6,2622.0,9.95]
[1645991838007,3.5,2623.8,2622.0,9.95]
[1645991838310,3.5,2623.8,2622.0,10.25]
[1645991838311,1.9081363,2623.8,2622.0,10.25]
[1645991838547,0.00447177,2623.6,2622.0,10.25]
[1645991838748,0.00447177,2623.6,2622.1,0.18008108]
[1645991838947,0.00447177,2623.6,2622.2,0.3802]
[1645991839152,0.00447177,2623.6,2622.7,5.0]
[1645991839153,7.177e-05,2623.6,2622.7,5.0]
[1645991839352,7.177e-05,2623.6,2623.5,1.20196076]
[1645991839552,7.177e-05,2623.6,2622.8,0.04918687]
[1645991839751,7.177e-05,2623.6,2623.3,0.95344]
[1645991840155,7.177e-05,2623.6,2623.4,0.439]
[1645991840349,7.177e-05,2623.6,2623.4,6.5552]
[1645991840750,7.177e-05,2623.6,2623.4,1.439]
[1645991840958,7.177e-05,2623.6,2623.4,0.439]
[1645991841154,7.177e-05,2623.6,2623.2,0.3]
[1645991841354,7.177e-05,2623.6,2623.0,6.1162]
[1645991841355,7.177e-05,2623.6,2623.0,6.4162]
[1645991841555,7.177e-05,2623.6,2623.1,0.439]
[1645991841956,7.177e-05,2623.6,2623.2,0.3802]
[1645991842227,7.177e-05,2623.6,2623.5,16.8602]
[1645991842414,7.177e-05,2623.6,2623.5,17.2992]
[1645991842612,7.014,2625.8,2623.5,20.8592]
[1645991842613,3.5,2625.7,2623.5,20.8592]
[1645991842813,0.1524,2625.8,2623.5,20.8592]
[1645991842814,0.1524,2625.8,2624.2,0.3802]
[1645991843011,0.1522,2625.9,2624.2,0.9302]
[1645991843217,3.6522,2625.9,2624.2,0.25]
[1645991843417,0.3802,2625.8,2624.2,0.25]
[1645991843620,0.01219485,2625.5,2624.2,0.25]
[1645991843817,0.3802,2625.4,2624.2,0.25]
[1645991844015,0.3802,2625.2,2624.2,0.25]
[1645991844619,3.5,2625.3,2624.2,0.25]
[1645991844620,4.4533787,2625.3,2624.2,0.25]
[1645991844816,0.3802,2625.4,2624.2,0.25]
[1645991845017,1.28561898,2625.1,2624.4,1.27679782]
[1645991845215,0.1522,2625.3,2624.4,1.27679782]
[1645991845418,0.87921,2626.0,2624.4,1.95699782]
[1645991845419,0.1522,2625.4,2624.4,1.95699782]
[1645991845619,0.5,2626.0,2624.4,1.95699782]
[1645991845817,0.3802,2625.7,2624.4,1.27679782]
[1645991846049,0.3802,2625.5,2624.4,1.27679782]
[1645991846253,3.5,2625.6,2624.2,0.25]
[1645991846254,1.63059708,2625.1,2624.2,0.25]
[1645991846448,0.3802,2624.9,2624.2,0.25]
[1645991846651,14.0,2624.8,2622.7,3.53905537]
[1645991846851,14.0,2624.8,2621.1,0.31449]
[1645991846852,0.01210487,2623.5,2621.1,0.31449]
[1645991847051,0.01210487,2623.5,2620.8,0.01565]
[1645991847052,0.18462604,2623.0,2620.8,0.01565]
[1645991847260,1.17563772,2621.0,2620.5,0.0173062]
[1645991847460,0.3802,2620.9,2620.5,0.0173062]
[1645991847659,0.3802,2620.9,2619.6,2.58964974]
[1645991847860,0.3802,2620.7,2619.8,0.25]
[1645991848058,3.5,2620.6,2619.8,0.25]
[1645991848256,0.20165744,2620.7,2620.6,0.9]
[1645991848463,1.15249615,2621.0,2619.8,1.41918349]
[1645991848659,1.9102,2621.1,2619.8,1.41918349]
[1645991848660,0.15869175,2621.1,2619.8,1.41918349]
[1645991848864,0.04918687,2621.2,2619.8,1.41918349]
[1645991849559,0.77336842,2621.0,2619.8,0.25]
[1645991849808,0.04918687,2621.2,2619.8,0.25]
[1645991850803,1.00395687,2621.2,2620.2,1.30088244]
[1645991851207,1.00395687,2621.2,2619.8,0.25]
[1645991851605,1.00395687,2621.2,2619.9,0.3727939]
[1645991852211,1.00395687,2621.2,2620.1,1.21350152]
[1645991852212,1.03775285,2620.4,2620.1,1.21350152]
[1645991852408,1.03775285,2620.4,2617.8,0.9]
[1645991852409,10.0,2620.1,2617.8,0.9]
[1645991852609,10.0,2620.1,2617.9,0.20214969]
[1645991852610,0.01230987,2618.9,2617.9,0.20214969]
[1645991852810,0.01230987,2618.9,2617.1,0.11769221]
[1645991852811,0.19897217,2618.5,2617.1,0.11769221]
[1645991853114,0.29121998,2618.4,2617.1,0.11769221]
[1645991853308,1.34181507,2617.4,2617.2,0.04206334]
[1645991853562,1.34181507,2617.4,2616.9,0.25]
[1645991853762,2.5087729,2617.4,2615.3,0.01219932]
[1645991853965,2.5087729,2617.4,2616.2,0.2671668]
[1645991853966,1.5524231,2617.4,2616.2,0.2671668]
[1645991854166,5.07249938,2618.0,2616.2,0.2671668]
[1645991854167,0.16237028,2618.0,2616.2,0.2671668]
[1645991854365,0.95602,2618.2,2616.2,0.2671668]
[1645991854564,5.66971032,2618.3,2616.3,0.01225545]
[1645991854565,0.5,2616.7,2616.3,0.01225545]
[1645991854963,0.15741032,2618.3,2616.3,0.19233653]
[1645991855164,0.19897217,2618.5,2616.3,0.19233653]
[1645991855362,0.19897217,2618.5,2616.8,0.25]
[1645991855965,0.19897217,2618.5,2616.9,0.3931669]